bitfinex/quotes_ETHUSD_20251009
["timestamp","ask_amount","ask_price","bid_price","bid_amount"]
[1760018151180,0.48102449,4358.1,4357.7,2.29474148]
[1760018151381,0.48102449,4358.0,4357.8,0.01225785]
[1760018151588,0.49312449,4358.1,4357.5,0.1144]
[1760018151749,2.4092389,4357.7,4356.4,0.4468]
[1760018151948,0.1144,4357.2,4356.5,0.1144]
[1760018152160,0.14308814,4357.2,4356.5,0.1144]
[1760018152364,0.49312449,4357.4,4355.4,0.4468]
[1760018152580,2.89653173,4357.5,4355.3,2.25177045]
[1760018152581,2.29551434,4356.4,4355.5,0.26985705]
[1760018152783,0.50971856,4356.3,4355.5,0.26985705]
[1760018152958,0.1144,4356.1,4355.5,0.26985705]
[1760018153173,0.62411988,4356.1,4355.5,0.26985705]
[1760018153375,0.02869539,4356.1,4355.3,2.25177045]
[1760018153575,0.61373069,4356.4,4355.3,2.25177045]
[1760018153576,0.48102449,4356.0,4355.3,2.25177045]
[1760018153777,0.48102449,4355.9,4355.4,0.01228791]
[1760018153977,0.48102449,4356.4,4355.3,2.25177045]
[1760018154179,0.02869144,4356.7,4355.4,0.68426289]
[1760018154180,0.48102449,4356.5,4355.4,0.68426289]
[1760018154516,0.48102449,4356.4,4355.5,0.4468]
[1760018154719,0.48102449,4356.3,4355.6,0.01228424]
[1760018154887,0.48102449,4356.8,4355.9,2.29570466]
[1760018155076,0.48102449,4356.7,4355.9,2.2956911]
[1760018155273,0.48102449,4356.6,4356.0,0.50383118]
[1760018155494,3.13244418,4357.4,4356.4,2.29547332]
[1760018155495,0.48102449,4356.7,4356.4,2.29547332]
[1760018155679,0.48102449,4356.6,4356.5,2.29542063]
[1760018156017,0.48102449,4356.9,4356.6,2.29532467]
[1760018156212,0.48102449,4356.8,4356.1,6.753]
[1760018156397,0.48102449,4356.7,4355.6,0.001]
[1760018157474,0.48102449,4356.6,4355.8,0.95878]
[1760018157671,0.04078946,4357.0,4355.8,0.95878]
[1760018157672,0.48102449,4356.5,4356.0,2.29568144]
[1760018157910,0.48102449,4356.4,4355.8,0.95878]
[1760018158117,0.48296159,4356.7,4356.3,0.2334]
[1760018158273,0.48216159,4356.6,4355.8,0.95878]
[1760018158472,0.60370199,4356.7,4355.9,3.3056743]
[1760018158702,0.60370199,4356.7,4355.9,1.009978]
[1760018158919,0.60370199,4356.7,4356.0,2.29568411]
[1760018159082,0.60370199,4356.4,4355.6,0.001]
[1760018159283,0.60370199,4356.2,4355.6,0.001]
[1760018159816,0.80217425,4355.9,4355.6,0.001]
[1760018160022,0.0765,4355.7,4355.6,0.001]
[1760018160184,2.29584222,4355.7,4355.6,0.001]
[1760018160384,3.39631647,4355.7,4355.6,0.001]
[1760018160588,3.28746475,4355.7,4355.6,0.001]
[1760018161016,5.20746475,4355.7,4355.6,0.001]
[1760018161220,2.29615852,4355.1,4353.7,2.387]
[1760018161419,5.52286764,4355.1,4353.7,9.144]
[1760018161647,4.31435852,4355.1,4353.7,9.144]
[1760018161857,3.22670912,4355.1,4353.7,9.144]
[1760018162148,5.52286764,4355.1,4353.2,0.434]
[1760018162351,12.27886023,4355.1,4355.0,98.56951792]
[1760018162559,14.66586023,4355.1,4355.0,98.56951792]
[1760018162843,10.97005798,4355.1,4355.0,98.56951792]
[1760018163145,1.71715627,4355.6,4355.0,98.56951792]
[1760018163314,0.8046721,4355.3,4355.1,0.01229238]
[1760018163520,0.60332121,4355.3,4355.2,0.434]
[1760018163723,0.60332121,4355.4,4355.2,0.1144]
[1760018163951,0.60332121,4355.4,4355.3,0.01229182]
[1760018164122,0.60332121,4355.5,4355.4,2.29600036]
[1760018164324,0.60332121,4355.7,4355.3,4.547818]
[1760018164544,3.536,4356.8,4355.3,2.25177045]
[1760018164545,0.60332121,4355.6,4355.3,2.25177045]
[1760018164730,0.60332121,4355.7,4355.5,0.1144]
[1760018165042,0.14309473,4356.2,4355.4,6.758]
[1760018165043,0.60332121,4355.6,4355.4,6.758]
[1760018165411,0.8046721,4355.8,4355.5,0.01228918]
[1760018165745,0.60339268,4355.7,4355.4,9.8441918]
[1760018165948,0.60339268,4355.7,4355.4,0.1144]
[1760018166163,0.60339268,4355.5,4355.2,6.756]
[1760018166441,0.60339268,4355.7,4355.4,2.29600036]
[1760018166609,0.60339268,4355.8,4355.7,2.29584222]
[1760018166809,0.60339268,4356.1,4355.7,7.199]
[1760018167014,0.60339268,4356.1,4356.0,0.1144]
[1760018167267,0.60339268,4356.4,4356.1,2.29563141]
[1760018167571,1.61995627,4357.6,4357.0,2.29515721]
[1760018167572,0.60339268,4357.3,4357.0,2.29515721]
[1760018167855,0.60339268,4358.1,4357.3,2.29498674]
[1760018168013,0.60339268,4358.2,4357.9,2.29465894]
[1760018168233,0.60339268,4358.4,4358.1,0.2334]
[1760018168431,0.60339268,4358.4,4358.2,6.768]
[1760018169269,0.60339268,4358.6,4358.3,0.434]
[1760018169485,0.60339268,4358.7,4358.4,0.56065047]
[1760018169770,0.60339268,4358.7,4358.6,2.29431468]
[1760018169932,0.60339268,4358.8,4358.5,0.434]
[1760018170129,0.60339268,4358.7,4358.4,0.1144]
[1760018170356,0.48318297,4358.6,4358.4,6.8864]
[1760018170541,0.48318297,4358.5,4358.4,0.1144]
[1760018170754,0.48318297,4358.5,4358.2,6.772]
[1760018171065,1.08681017,4358.4,4358.2,6.8864]
[1760018171234,0.48318297,4358.3,4358.2,6.772]
[1760018171436,0.48318297,4358.3,4357.4,0.434]
[1760018171437,0.48318297,4358.3,4357.4,2.72890046]
[1760018171763,2.29473587,4357.8,4356.9,5.002]
[1760018172075,3.41028737,4357.7,4356.9,5.002]
[1760018172366,3.41028737,4357.7,4356.6,2.387]
[1760018172367,0.48318297,4357.6,4356.1,0.27297669]
[1760018172565,2.29509066,4357.2,4356.2,3.195]
[1760018172876,0.6036272,4356.9,4355.7,2.387]
[1760018173036,2.29536624,4356.7,4356.0,6.77]
[1760018173230,2.29543456,4356.5,4356.0,6.77]
[1760018173436,2.29543456,4356.5,4354.8,9.549]
[1760018173437,2.29557329,4356.3,4353.5,2.29697208]
[1760018173672,0.51187572,4356.5,4355.1,2.68577045]
[1760018173874,1.11550358,4356.4,4355.5,2.29594669]
[1760018174074,0.02869341,4356.4,4355.6,0.44628424]
[1760018174374,0.48318297,4356.8,4355.7,6.769]
[1760018174555,0.48318297,4357.5,4356.3,0.2334]
[1760018174762,0.48318297,4357.6,4356.4,7.21427215]
[1760018174936,0.002,4357.7,4356.5,0.44627083]
[1760018175270,0.002,4357.7,4356.6,2.387]
[1760018175572,0.002,4357.7,4357.6,2.29484119]
[1760018175809,0.002,4357.7,4357.6,9.06184119]
[1760018176007,0.002,4357.7,4357.6,9.06084119]
[1760018176194,0.002,4357.7,4357.6,9.49484119]
[1760018176600,0.002,4357.7,4357.6,7.2]
[1760018176799,0.002,4357.7,4357.0,0.434]
[1760018177114,0.002,4357.7,4357.1,3.031]
[1760018178021,0.002,4357.7,4357.2,0.44626472]
[1760018178311,0.002,4357.7,4357.6,2.29484119]
[1760018178724,0.002,4357.7,4357.1,0.3465]
[1760018179031,0.002,4357.7,4356.8,2.387]
[1760018179176,0.1799,4357.6,4356.9,0.511]
[1760018179377,0.002,4357.7,4356.1,0.6674]
[1760018179608,0.002,4357.7,4356.1,2.96302096]
[1760018179609,2.29502265,4357.3,4356.1,2.96302096]
[1760018179922,0.51186914,4357.5,4356.2,9.152]
[1760018180230,0.02868617,4357.5,4356.3,0.434]
[1760018180411,0.002,4357.7,4356.3,0.434]
[1760018180412,0.002,4357.7,4356.5,2.29542063]
[1760018180577,0.002,4357.7,4356.6,0.01226951]
[1760018180781,0.002,4357.7,4357.6,2.29484119]
[1760018181013,0.002,4357.7,4357.6,11.45384119]
[1760018181191,0.002,4357.7,4357.6,12.00224119]
[1760018181392,0.0012,4357.7,4357.6,12.00224119]
[1760018182472,0.0012,4357.7,4357.6,7.3204]
[1760018182677,0.0012,4357.7,4357.6,0.1144]
[1760018182876,0.0012,4357.7,4357.6,5.58624119]
[1760018183077,0.0012,4357.7,4357.6,3.7254]
[1760018183280,0.0012,4357.7,4357.6,6.02024119]
[1760018183729,0.0012,4357.7,4357.6,5.90584119]
[1760018184022,0.0012,4357.7,4357.6,6.84031985]
[1760018185325,0.0012,4357.7,4357.6,0.1144]
[1760018185524,0.0012,4357.7,4357.6,9.2794]
[1760018185724,0.0012,4357.7,4357.6,11.57424119]
[1760018186020,0.0012,4357.7,4357.6,9.2794]
[1760018186226,0.0012,4357.7,4357.6,6.8894]
[1760018186794,0.0012,4357.7,4356.3,0.434]
[1760018187106,0.0012,4357.7,4357.4,0.1144]
[1760018188012,0.2307845,4357.7,4357.4,0.1144]
[1760018188218,0.0012,4357.7,4357.5,2.39926232]
[1760018188422,0.0012,4357.7,4357.6,2.83894119]
[1760018189114,0.0012,4357.7,4357.6,6.5264]
[1760018189314,0.0012,4357.7,4357.6,0.1144]
[1760018189624,0.0012,4357.7,4357.2,2.29500188]
[1760018189625,0.0012,4357.7,4357.4,4.909]
[1760018189813,0.0012,4357.7,4357.3,2.29499405]
[1760018190144,0.0012,4357.7,4357.4,0.01226312]
[1760018190436,0.0012,4357.7,4357.6,2.40924119]
[1760018190601,0.0012,4357.7,4357.6,0.1144]
[1760018191865,0.0012,4357.7,4357.6,2.83894119]
[1760018192149,0.0012,4357.7,4357.6,0.1144]
[1760018192958,0.0012,4357.7,4357.6,6.8784]
[1760018193524,0.0012,4357.7,4357.6,9.17324119]
[1760018193729,0.0012,4357.7,4357.6,10.98835709]
[1760018193924,0.0012,4357.7,4357.6,8.2638159]
[1760018194242,0.0012,4357.7,4357.6,10.55865709]
[1760018194609,0.0012,4357.7,4357.6,9.17324119]
[1760018194769,0.0012,4357.7,4357.6,0.1144]
[1760018194938,0.0012,4357.7,4357.6,6.8714]
[1760018195673,0.0012,4357.7,4357.6,6.757]
[1760018195824,0.0012,4357.7,4357.6,9.05184119]
[1760018196170,0.0012,4357.7,4357.6,6.757]
[1760018196917,0.0012,4357.7,4357.6,10.62534062]
[1760018198144,0.0012,4357.7,4357.6,3.43864062]
[1760018198323,0.0012,4357.7,4357.6,11.43284119]
[1760018198526,0.0012,4357.7,4357.6,6.751]
[1760018199351,0.0012,4357.7,4357.6,9.04584119]
[1760018199546,0.0012,4357.7,4357.6,9.47554119]
[1760018200561,0.0012,4357.7,4357.6,9.47154119]
[1760018200867,0.0012,4357.7,4357.6,13.98888995]
[1760018201220,0.0012,4357.7,4357.6,11.60188995]
[1760018201470,0.0012,4357.7,4357.6,13.98788995]
[1760018201971,0.0012,4357.7,4357.6,13.98888995]
[1760018203271,0.0012,4357.7,4357.6,11.42384119]
[1760018203448,0.0012,4357.7,4357.6,9.129]
[1760018203652,0.0012,4357.7,4357.6,11.42384119]
[1760018203860,0.0012,4357.7,4357.6,11.85354119]
[1760018204063,0.0012,4357.7,4357.6,9.129]
[1760018204383,0.0012,4357.7,4357.6,9.127]
[1760018204583,0.0012,4357.7,4356.1,4.44901492]
[1760018204785,0.0012,4357.7,4356.6,2.955]
[1760018204971,0.0012,4357.7,4356.7,0.80468]
[1760018205281,0.0012,4357.7,4357.6,2.29484119]
[1760018205587,0.0012,4357.7,4357.6,11.53624119]
[1760018205907,0.0012,4357.7,4357.6,11.99904119]
[1760018206757,0.0004,4357.7,4357.6,11.99904119]
[1760018207086,0.0004,4357.7,4357.6,13.42843655]
[1760018208669,0.0004,4357.7,4357.6,15.98203655]
[1760018209401,0.0004,4357.7,4357.6,25.52903655]
[1760018209612,0.0004,4357.7,4357.6,6.85503655]
[1760018209775,0.0004,4357.7,4357.6,4.30143655]
[1760018210099,0.0004,4357.7,4357.6,21.53804119]
[1760018212478,0.0004,4357.7,4357.6,21.42364119]
[1760018214809,0.0004,4357.7,4357.6,11.88064119]
[1760018217390,0.0004,4357.7,4357.6,19.03664119]
[1760018217590,0.0004,4357.7,4357.6,21.42164119]
[1760018217889,0.0004,4357.7,4357.6,23.67341164]
[1760018219004,0.0004,4357.7,4357.6,5.00941164]
[1760018219218,0.0004,4357.7,4357.6,11.87264119]
[1760018220829,0.0004,4357.7,4357.6,21.41864119]
[1760018222438,0.0004,4357.7,4357.6,21.42064119]
[1760018222636,0.0004,4357.7,4357.6,21.53504119]
[1760018222996,0.0744,4359.9,4359.2,2.2939476]
[1760018223221,0.0744,4359.9,4359.4,0.1144]
[1760018223431,0.0744,4359.9,4359.6,2.29378842]
[1760018223634,0.0744,4359.9,4359.8,2.29368319]
[1760018224094,0.0744,4359.9,4359.8,2.72568319]
[1760018224832,0.0744,4359.9,4359.8,3.9129624]
[1760018225345,0.60346405,4361.7,4360.2,2.29345859]
[1760018225346,0.02865855,4361.7,4360.2,2.29345859]
[1760018225549,0.2008,4362.5,4359.8,1.61927921]
[1760018225550,0.0286546,4362.3,4361.7,2.29267283]
[1760018225720,0.002,4362.7,4360.3,9.7684]
[1760018225721,2.29221106,4362.6,4361.8,2.94020421]
[1760018225905,0.02865329,4362.5,4361.9,2.695]
[1760018226241,0.002,4362.7,4362.1,2.29242834]
[1760018226404,0.002,4362.7,4362.2,5.114]
[1760018226608,0.002,4362.7,4362.3,6.74319816]
[1760018226806,0.002,4362.7,4362.4,6.731]
[1760018227214,0.002,4362.7,4362.5,6.731]
[1760018227420,0.002,4362.7,4360.1,11.464]
[1760018227421,0.1068,4362.6,4361.7,6.731]
[1760018227744,2.29256825,4362.0,4361.5,6.73]
[1760018228046,2.29256825,4362.0,4359.4,9.544]
[1760018228047,2.2928429,4361.4,4361.3,6.731]
[1760018228221,0.02865986,4361.5,4361.2,6.731]
[1760018228428,2.29277812,4361.6,4361.2,6.732]
[1760018228721,2.29284592,4361.4,4361.2,6.732]
[1760018228955,0.2321436,4361.5,4361.2,6.732]
[1760018229242,2.43225724,4362.5,4361.2,6.732]
[1760018229442,2.29272735,4361.7,4361.2,6.732]
[1760018229942,1.92,4361.7,4361.2,6.732]
[1760018230105,1.92,4361.7,4360.7,2.817]
[1760018230106,2.29279881,4361.5,4360.7,2.29320689]
[1760018230312,0.02866052,4361.4,4360.8,6.711]
[1760018230651,0.1,4361.8,4360.9,6.728]
[1760018230825,0.02865855,4361.7,4360.9,6.728]
[1760018231207,0.02865526,4362.2,4360.9,6.728]
[1760018231445,2.29256425,4362.0,4360.9,6.728]
[1760018231630,0.29071918,4361.9,4360.9,6.728]
[1760018231944,0.002,4361.6,4360.9,6.728]
[1760018232340,0.002,4361.6,4361.0,0.01221421]
[1760018232764,0.002,4361.6,4360.9,6.728]
[1760018233137,0.002,4361.6,4361.0,0.44421421]
[1760018233341,0.002,4361.6,4361.4,0.1144]
[1760018233572,0.002,4361.6,4361.5,6.723]
[1760018234175,0.002,4361.6,4361.5,9.56218917]
[1760018234544,0.002,4361.6,4361.5,7.2694]
[1760018234744,0.002,4361.6,4361.5,9.56218917]
[1760018235873,0.002,4361.6,4361.5,7.2694]
[1760018236097,0.002,4361.6,4361.5,9.56218917]
[1760018236406,0.002,4361.6,4361.5,7.2694]
[1760018236610,0.002,4361.6,4361.5,6.8374]
[1760018236814,0.002,4361.6,4361.5,0.1144]
[1760018237013,0.002,4361.6,4359.6,2.29378227]
[1760018237222,0.002,4361.6,4360.3,0.432]
[1760018237376,2.29290705,4361.3,4360.9,0.1144]
[1760018237571,0.02865986,4361.5,4361.0,0.703]
[1760018237815,0.1164,4361.6,4361.0,0.703]
[1760018238141,2.29278972,4361.5,4361.0,0.703]
[1760018238275,0.1164,4361.6,4361.3,0.1144]
[1760018238276,0.002,4361.6,4361.3,0.1144]
[1760018238481,0.002,4361.6,4361.4,7.15821102]
[1760018238682,0.002,4361.6,4361.5,0.01221022]
[1760018238882,0.002,4361.6,4361.5,2.85139939]
[1760018239202,0.002,4361.6,4361.5,2.85139887]
[1760018239710,0.002,4361.6,4361.5,7.2604]
[1760018239911,0.002,4361.6,4361.5,9.2114]
[1760018240317,0.002,4361.6,4361.5,9.6434]
[1760018240999,0.002,4361.6,4361.5,9.2114]
[1760018241390,0.002,4361.6,4361.5,11.93618917]
[1760018241780,0.002,4361.6,4361.5,9.2114]
[1760018241985,0.002,4361.6,4361.5,9.6434]
[1760018242417,2.29473661,4361.6,4361.5,0.1144]
[1760018242713,2.29473661,4361.6,4361.2,1.03]
[1760018242714,2.29291238,4361.3,4361.2,1.03]
[1760018242914,2.29291238,4361.3,4361.2,6.488]
[1760018243118,0.46073777,4361.6,4361.2,6.488]
[1760018243417,2.29289432,4361.3,4361.2,6.488]
[1760018244038,2.29289432,4361.3,4360.1,11.83347339]
[1760018244039,2.29314385,4360.9,4359.7,10.20137823]
[1760018244208,2.29326762,4360.6,4360.3,2.4994]
[1760018244414,2.29326762,4360.6,4360.4,6.705]
[1760018244415,0.02866643,4360.5,4360.4,6.705]
[1760018244621,0.1144,4360.6,4360.4,6.705]
[1760018244821,0.099,4361.3,4360.5,0.01222337]
[1760018244822,0.02866117,4361.3,4360.5,0.01222337]
[1760018245023,0.1144,4361.0,4360.4,6.705]
[1760018245226,0.1144,4361.4,4360.7,0.1144]
[1760018245405,0.002,4361.6,4361.1,2.29299297]
[1760018245732,0.002,4361.6,4361.3,2.40728857]
[1760018246031,0.002,4361.6,4361.5,2.29278917]
[1760018246234,0.002,4361.6,4361.4,0.01221102]
[1760018246235,0.002,4361.6,4361.4,2.29283074]
[1760018246530,0.002,4361.6,4361.2,6.617]
[1760018246717,0.002,4361.6,4361.5,2.29278917]
[1760018246921,0.002,4361.6,4361.4,2.72483214]
[1760018247121,0.002,4361.6,4361.4,0.432]
[1760018247425,0.002,4361.6,4361.2,6.617]
[1760018247800,0.002,4361.6,4358.1,2.41]
[1760018248006,0.002,4361.6,4360.9,2.29309929]
[1760018248233,0.002,4361.6,4359.4,1.92]
[1760018248234,0.48938996,4361.6,4361.0,0.675]
[1760018248436,2.29307389,4361.0,4360.9,2.627]
[1760018248810,0.02866249,4361.1,4360.9,2.627]
[1760018249132,2.29305205,4361.0,4360.9,2.627]
[1760018249639,0.102,4361.0,4360.1,4.985]
[1760018249813,0.0286638,4360.9,4360.1,4.985]
[1760018250203,2.29331108,4360.6,4360.1,4.985]
[1760018250439,1.9192,4360.5,4360.1,4.985]
[1760018250608,0.60346405,4361.3,4360.3,2.29341215]
[1760018250807,0.02865986,4361.5,4360.2,0.4364]
[1760018251048,0.02865986,4361.5,4360.3,2.29342017]
[1760018251049,2.29284174,4361.4,4360.3,2.29342017]
[1760018251356,0.002,4361.6,4360.2,0.4364]
[1760018251357,0.02866117,4361.3,4360.2,0.4364]
[1760018251528,2.29285137,4361.4,4360.8,0.001]
[1760018251724,2.29285137,4361.4,4360.8,6.704]
[1760018251922,2.29289689,4361.3,4360.8,6.704]
[1760018252135,0.02866183,4361.2,4360.8,6.704]
[1760018252345,0.02866052,4361.4,4360.8,6.704]
[1760018252540,0.16018499,4361.4,4360.8,6.704]
[1760018252741,0.63412325,4361.6,4360.8,6.704]
[1760018252953,0.002,4361.6,4360.9,2.29310463]
[1760018253161,0.002,4361.6,4361.0,0.01221421]
[1760018253565,0.002,4361.6,4360.9,2.29306649]
[1760018253769,2.29294983,4361.2,4360.9,6.701]
[1760018253936,2.2929087,4361.3,4360.9,6.701]
[1760018254138,0.51527932,4361.6,4360.9,6.701]
[1760018254339,0.0306592,4361.6,4360.9,6.701]
[1760018254644,2.29305205,4361.0,4360.8,0.001]
[1760018254846,0.0286638,4360.9,4360.8,0.001]
[1760018255038,0.02866052,4361.4,4360.8,0.001]
[1760018255235,2.29289432,4361.3,4360.8,0.001]
[1760018255468,0.02866183,4361.2,4360.8,0.001]
[1760018255768,2.29291267,4361.3,4360.8,0.001]
[1760018255982,2.29288233,4361.4,4360.8,0.1154]
[1760018256180,2.29291759,4361.3,4360.8,0.1154]
[1760018256471,0.02865986,4361.5,4360.8,0.1154]
[1760018256677,2.29293165,4361.3,4360.8,0.1154]
[1760018256839,0.02866183,4361.2,4360.8,0.1154]
[1760018257041,0.02866117,4361.3,4360.8,0.1154]
[1760018257468,0.15197426,4361.5,4360.8,0.1154]
[1760018257947,2.29284218,4361.4,4360.8,0.1154]
[1760018258277,0.72585783,4361.4,4360.9,2.30256591]
[1760018258450,0.1164,4361.6,4360.9,2.30254418]
[1760018258653,2.29279227,4361.5,4360.8,0.1154]
[1760018258858,0.02866052,4361.4,4360.8,0.1154]
[1760018259075,0.62967932,4361.6,4360.9,2.29310244]
[1760018259283,0.1164,4361.6,4360.9,0.01221604]
[1760018259588,0.002,4361.6,4361.5,2.40718917]
[1760018259750,0.002,4361.6,4361.5,11.91858917]
[1760018259951,0.002,4361.6,4361.5,9.1894]
[1760018261258,0.002,4361.6,4361.5,11.48218917]
[1760018261459,0.002,4361.6,4361.5,11.80418917]
[1760018261662,0.002,4361.6,4361.5,13.21389422]
[1760018263503,0.0012,4362.7,4362.6,2.29221106]
[1760018263647,0.0012,4362.7,4362.6,11.36321106]
[1760018263852,0.0012,4362.7,4362.6,11.79961106]
[1760018267178,0.0012,4362.7,4362.6,9.5074]
[1760018267389,0.0012,4362.7,4361.3,0.2187]
[1760018267588,0.1893,4362.6,4361.5,6.681]
[1760018267770,2.29237463,4362.3,4361.5,8.97374452]
[1760018267982,0.02865329,4362.5,4361.5,6.681]
[1760018268147,0.0012,4362.7,4361.8,2.29259111]
[1760018268484,0.0012,4362.7,4361.9,6.689]
[1760018268687,0.0012,4362.7,4362.3,2.29236806]
[1760018268891,0.0012,4362.7,4362.5,2.29225353]
[1760018269182,0.0012,4362.7,4362.6,0.01219577]
[1760018269385,0.0012,4362.7,4362.4,6.689]
[1760018269978,0.0012,4362.7,4362.4,7.1475]
[1760018270183,0.0012,4362.7,4362.4,9.43977503]
[1760018270389,0.0012,4362.7,4362.5,0.47069657]
[1760018270587,0.0012,4362.7,4362.6,4.67621106]
[1760018270747,0.0012,4362.7,4362.6,5.13471106]
[1760018271280,0.0012,4362.7,4362.0,0.4585]
[1760018271483,0.0012,4362.7,4362.5,0.1144]
[1760018271849,2.29221106,4362.6,4362.5,0.403]
[1760018272076,0.14425198,4362.7,4362.5,0.403]
[1760018272458,0.14425198,4362.7,4362.0,0.1144]
[1760018272658,0.1156,4362.7,4362.1,8.03]
[1760018272864,0.0012,4362.7,4362.5,2.29224648]
[1760018273066,0.0012,4362.7,4362.5,0.01219605]
[1760018273272,0.0012,4362.7,4362.3,0.1144]
[1760018273273,0.0012,4362.7,4362.6,6.683]
[1760018273583,0.0004,4362.7,4362.6,8.97521106]
[1760018273887,0.0004,4362.7,4362.6,7.1415]
[1760018274089,0.0004,4362.7,4362.6,9.43371106]
[1760018274383,0.0004,4362.7,4362.6,10.85615334]
[1760018274963,0.0004,4362.7,4362.6,8.56394228]
[1760018275956,0.0004,4362.7,4362.6,10.85615334]
[1760018276781,0.0004,4362.7,4362.6,8.56394228]
[1760018276953,0.0004,4362.7,4362.6,7.1415]
[1760018277150,0.0004,4362.7,4362.5,0.1144]
[1760018277359,0.1148,4362.7,4362.5,0.64]
[1760018278662,0.14345198,4362.7,4362.5,0.64]
[1760018278865,0.0004,4362.7,4362.5,0.64]
[1760018279753,0.02905198,4362.7,4362.5,0.64]
[1760018280197,0.0004,4362.7,4362.6,2.29221106]
[1760018280398,0.0004,4362.7,4362.6,0.466]
[1760018280564,0.0004,4362.7,4362.3,2.29231895]
[1760018280565,0.0004,4362.7,4362.1,0.466]
[1760018280889,0.0004,4362.7,4362.2,9.056]
[1760018281118,0.0004,4362.7,4362.3,6.672]
[1760018281422,0.0004,4362.7,4361.6,0.466]
[1760018281423,2.29223792,4362.6,4362.4,6.672]
[1760018281722,2.29223792,4362.6,4362.5,6.567]
[1760018281932,2.29257387,4362.7,4362.5,6.567]
[1760018282098,0.02865263,4362.6,4362.5,6.567]
[1760018282280,2.32086369,4362.6,4362.5,6.567]
[1760018282982,0.02865263,4362.6,4362.5,6.567]
[1760018283429,0.02865263,4362.6,4362.2,2.384]
[1760018283430,2.2924616,4362.2,4361.4,2.29278941]
[1760018283587,0.6336,4362.5,4360.9,0.466]
[1760018283588,0.02865592,4362.1,4360.9,0.466]
[1760018283788,0.02865395,4362.4,4361.2,7.579]
[1760018283985,0.02865395,4362.4,4360.8,9.538]
[1760018283986,2.2924738,4362.1,4360.8,2.385]
[1760018284311,5.03960463,4360.9,4360.8,0.001]
[1760018284624,17.88355968,4360.9,4360.8,0.001]
[1760018284785,17.98345968,4360.9,4360.8,0.001]
[1760018288668,18.58692373,4360.9,4360.8,0.001]
[1760018288872,18.58692373,4360.9,4360.0,1e-08]
[1760018288873,16.47307886,4360.1,4360.0,1e-08]
[1760018289019,26.01081701,4360.1,4360.0,1e-08]
[1760018289224,26.64667784,4360.1,4360.0,1e-08]
[1760018289434,27.24992204,4360.1,4360.0,1e-08]
[1760018289640,27.45218922,4360.1,4360.0,1e-08]
[1760018289853,27.91818922,4360.1,4360.0,1e-08]
[1760018290342,27.11267784,4360.1,4360.0,1e-08]
[1760018290724,27.58234845,4360.1,4360.0,1e-08]
[1760018291043,6.43739496,4360.1,4360.0,1e-08]
[1760018291357,27.11634845,4360.1,4360.0,1e-08]
[1760018291568,27.71853617,4360.1,4360.0,1e-08]
[1760018291870,27.71805145,4360.1,4360.0,1e-08]
[1760018292030,18.66505145,4360.1,4360.0,1e-08]
[1760018292400,4.96157798,4360.0,4359.9,0.001]
[1760018292656,4.8473358,4359.7,4359.6,0.001]
[1760018292819,11.99907395,4359.7,4359.6,0.001]
[1760018293016,12.31887395,4359.7,4359.6,0.001]
[1760018295056,5.1671358,4359.7,4359.6,0.001]
[1760018295259,14.75409663,4359.7,4359.6,0.001]
[1760018295825,0.6336,4358.9,4357.7,0.1144]
[1760018296029,2.29467272,4358.0,4357.2,2.387]
[1760018296349,0.14308156,4358.2,4357.4,0.1144]
[1760018296656,0.14228156,4358.2,4357.4,0.1144]
[1760018296822,0.14228156,4358.2,4357.5,2.54499078]
[1760018297254,0.14228156,4358.2,4357.5,0.25014]
[1760018297457,2.29474578,4357.8,4357.5,0.25014]
[1760018297636,2.40812833,4358.2,4357.4,0.1144]
[1760018297840,0.02868222,4358.1,4357.4,0.1144]
[1760018298040,0.02868222,4358.1,4357.4,2.40929403]
[1760018298833,0.02868222,4358.1,4357.7,2.29477543]
[1760018299075,2.40812659,4358.2,4357.8,0.01225785]
[1760018299766,0.1136,4358.2,4357.6,2.30708542]
[1760018299942,0.1136,4358.2,4357.6,0.01225785]
[1760018300348,2.29483662,4357.7,4357.4,0.1144]
[1760018300543,11.83834123,4358.1,4357.4,0.1144]
[1760018300775,0.1144,4357.9,4357.3,4.73]
[1760018300945,1.92,4358.9,4357.4,2.3071941]
[1760018301262,0.1144,4358.3,4357.6,0.1144]
[1760018301569,0.2194,4359.5,4357.7,0.466]
[1760018301770,0.02867367,4359.4,4358.2,0.2202]
[1760018302072,2.29416825,4358.9,4358.2,0.776]
[1760018302374,2.29435089,4358.6,4358.2,1.1388]
[1760018302575,0.02867959,4358.5,4357.5,0.466]
[1760018302866,11.80965901,4359.0,4357.6,2.386]
[1760018302867,1.92,4358.3,4357.6,2.386]
[1760018303170,2.29458409,4358.1,4357.6,0.2386]
[1760018303334,0.6336,4359.0,4357.7,0.01225865]
[1760018303538,1.94867695,4358.9,4357.7,2.30702095]
[1760018303775,1.94867695,4358.9,4357.7,0.01225865]
[1760018303776,2.29445784,4358.4,4357.7,0.01225865]
[1760018304080,2.29445784,4358.4,4357.7,2.30703412]
[1760018304283,2.29445784,4358.4,4357.7,0.01225865]
[1760018304634,0.0286809,4358.3,4357.6,0.466]
[1760018304832,2.29446765,4358.4,4357.7,0.01225762]
[1760018305155,2.29466281,4358.0,4357.1,11.931]
[1760018305357,2.29463056,4358.0,4357.2,3.83004555]
[1760018305559,0.6336,4359.4,4357.3,0.01226237]
[1760018305767,2.29444306,4358.4,4357.3,2.77325921]
[1760018305938,0.0286809,4358.3,4357.3,0.466]
[1760018306138,0.1026,4358.4,4357.2,1.53502083]
[1760018306348,0.0286809,4358.3,4357.2,1.53502083]
[1760018306552,2.29472403,4357.9,4357.2,1.53502083]
[1760018306877,0.02868024,4358.4,4357.2,1.53502083]
[1760018307041,0.02868024,4358.4,4357.2,2.00102083]
[1760018307455,2.2947225,4357.9,4357.2,2.00102083]